bitfinex-derivatives/quotes_SOLF0:USTF0_20251222
["timestamp","ask_amount","ask_price","bid_price","bid_amount"]
[1766424705710,24.81648486,127.05,126.99,21.99]
[1766424707494,24.75820782,127.03,126.97,21.99]
[1766424707697,0.05846094,127.01,126.97,21.99]
[1766424707893,2.37820782,126.99,126.96,0.56628432]
[1766424708110,24.75820782,126.99,126.96,0.56628432]
[1766424708302,0.05846094,127.01,126.96,0.56628432]
[1766424708303,2.37820782,127.0,126.96,0.56628432]
[1766424708511,22.43846094,127.01,126.96,0.56628432]
[1766424709396,22.38,126.99,126.91,21.99]
[1766424709595,0.05332798,126.96,126.91,21.99]
[1766424710404,0.05332798,126.96,126.91,24.36820782]
[1766424711711,2.4315358,126.96,126.91,21.99]
[1766424713298,22.38,127.03,126.94,21.99]
[1766424713601,2.37820782,127.01,126.94,21.99]
[1766424713803,24.75820782,127.01,126.94,21.99]
[1766424714413,24.81780902,126.99,126.96,0.04988962]
[1766424714612,24.81780902,126.99,126.96,0.0512807]
[1766424714905,24.81780902,126.99,126.96,0.0012807]
[1766424715107,24.81780902,126.99,126.92,21.99]
[1766424715904,22.4396012,126.99,126.93,21.99]
[1766424717013,24.81780902,126.99,126.93,21.99]
[1766424718313,24.81780902,126.99,126.89,205.74880782]
[1766424718314,24.75820782,126.97,126.9,21.99]
[1766424718512,2.43595828,126.95,126.88,21.99]
[1766424719106,2.43595828,126.95,126.88,29.086]
[1766424719399,2.43595828,126.95,126.89,21.99]
[1766424720413,2.37820782,126.93,126.87,21.99]
[1766424720603,0.05625675,126.91,126.87,21.99]
[1766424720998,0.05625675,126.91,126.87,29.0865]
[1766424722811,2.37820782,126.93,126.88,21.99]
[1766424723016,24.75820782,126.95,126.88,21.99]
[1766424724012,0.06046413,126.93,126.9,0.0536644]
[1766424725209,0.00046413,126.93,126.9,22.0436644]
[1766424726315,0.00046413,126.93,126.9,0.0536644]
[1766424728511,0.00046413,126.93,126.9,31.1684644]
[1766424732424,0.00046413,126.93,126.9,24.0736644]
[1766424733318,0.00046413,126.93,126.9,0.0536644]
[1766424734114,0.00046413,126.93,126.87,24.02]
[1766424734324,26.93783933,126.94,126.87,24.02]
[1766424735020,7.0934,126.93,126.87,24.02]
[1766424735325,0.05018467,126.92,126.89,0.05525558]
[1766424738324,0.00018467,126.92,126.89,24.07525558]
[1766424743934,0.00018467,126.92,126.89,31.17075558]
[1766424744135,0.00018467,126.92,126.9,24.02]
[1766424744631,123.3415,126.97,126.9,24.02]
[1766424745230,23.21,126.96,126.9,24.02]
[1766424745634,0.05029819,126.94,126.92,0.05190907]
[1766424751638,0.05029819,126.94,126.89,24.02]
[1766424752642,0.05029819,126.94,126.9,0.05522166]
[1766424753629,23.26029819,126.94,126.9,0.05522166]
[1766424754939,0.05029819,126.94,126.9,0.05522166]
[1766424755238,0.05029819,126.94,126.9,24.07522166]
[1766424756137,0.05029819,126.94,126.9,0.05522166]
[1766424758629,26.72783933,126.93,126.88,23.65]
[1766424758944,26.72783933,126.93,126.85,9.68229159]
[1766424758945,26.72783933,126.93,126.85,22.01]
[1766424759444,33.82123933,126.93,126.86,22.01]
[1766424759743,0.05115291,126.91,126.86,22.01]
[1766424760539,0.05115291,126.91,126.86,29.1072]
[1766424761540,0.05115291,126.91,126.87,7.0965]
[1766424761846,0.05115291,126.91,126.88,22.01]
[1766424762345,0.05115291,126.91,126.87,7.0965]
[1766424762644,0.05115291,126.91,126.87,29.1065]
[1766424765935,0.05115291,126.91,126.87,22.01]
[1766424767247,0.00115291,126.91,126.87,22.01]
[1766424768640,0.00115291,126.91,126.88,0.05427204]
[1766424769238,23.00115291,126.91,126.85,22.01]
[1766424769744,26.72783933,126.9,126.85,22.01]
[1766424770545,33.82303933,126.9,126.85,22.01]
[1766424770731,3.72783933,126.9,126.85,22.01]
[1766424771040,0.00115291,126.91,126.85,22.01]
[1766424771627,0.00115291,126.91,126.86,22.01]
[1766424771829,0.05799861,126.9,126.86,22.01]
[1766424774341,26.72783933,126.94,126.86,22.01]
[1766424774547,27.38184933,126.98,126.87,22.01]
[1766424774938,0.65401,126.98,126.91,22.01]
[1766424775139,0.00401,126.98,126.91,22.01]
[1766424775348,0.00401,126.98,126.9,9.68229159]
[1766424775349,0.00401,126.98,126.94,22.01]
[1766424776451,93.08,127.02,126.94,22.01]
[1766424776650,116.08,127.02,126.94,22.01]
[1766424777455,0.05836547,126.99,126.97,0.05359079]
[1766424777958,116.08,127.02,126.97,0.05359079]
[1766424778160,93.08,127.02,126.97,22.06359079]
[1766424779050,0.05516161,127.01,126.97,22.06359079]
[1766424782958,28.7026765,127.08,126.98,93.04]
[1766424783260,26.72783933,127.08,126.98,93.04]
[1766424783754,0.05156133,127.04,127.02,0.05930243]
[1766424784160,0.05156133,127.04,126.98,93.04]
[1766424784357,26.72783933,127.06,126.98,93.04]
[1766424785053,0.05085524,127.03,127.01,0.0604236]
[1766424787057,0.00085524,127.03,127.01,0.0604236]
[1766424795458,26.26185517,127.03,126.95,110.3197]
[1766424795657,23.88,127.02,126.95,93.0]
[1766424795869,2.38099993,127.01,126.95,93.0]
[1766424796667,2.38099993,127.02,126.97,0.05907282]
[1766424797467,0.06059247,127.01,126.97,0.05907282]
[1766424798154,0.06059247,127.01,126.97,7.15007282]
[1766424798663,0.06059247,127.01,126.97,0.05907282]
[1766424798864,0.06059247,127.01,126.98,7.0904]
[1766424801363,0.06059247,127.01,126.99,93.0]
[1766424803575,0.06059247,127.01,126.99,100.0898]
[1766424810073,0.06059247,127.01,126.99,7.0898]
[1766424810276,0.06059247,127.01,127.0,92.98]
[1766424813982,0.06059247,127.01,127.0,100.0694]
[1766424814874,0.06059247,127.01,127.0,92.98]
[1766424817983,0.06059247,127.01,127.0,100.0694]
[1766424818370,23.69059247,127.01,126.97,0.05907282]
[1766424818576,2.38099993,127.0,126.97,0.05907282]
[1766424818777,2.38099993,127.0,126.94,109.55]
[1766424819083,2.38099993,126.98,126.94,109.55]
[1766424819687,0.04994833,126.97,126.95,0.05322367]
[1766424822884,0.04994833,126.97,126.91,7.094]
[1766424822885,2.38099993,126.96,126.91,25.13]
[1766424823090,26.01099993,126.96,126.91,93.0]
[1766424823590,23.63,126.96,126.91,93.0]
[1766424823792,23.63,126.96,126.92,0.05788473]
[1766424825695,0.04994833,126.97,126.92,0.05788473]
[1766424826297,23.67994833,126.97,126.92,0.05788473]
[1766424828001,26.06094826,126.97,126.92,0.05788473]
[1766424828793,30.7217,126.96,126.92,0.05788473]
[1766424833811,23.63,126.95,126.92,0.05788473]
[1766424834011,26.01099993,126.94,126.86,125.2668]
[1766424834895,0.05039926,126.91,126.89,0.05415601]
[1766424839612,0.05039926,126.91,126.87,25.13]
[1766424839911,26.06139919,126.91,126.84,25.13]
[1766424840206,33.10549993,126.91,126.84,25.13]
[1766424840507,23.63,126.91,126.84,25.13]
[1766424840812,0.05216999,126.89,126.86,0.05036981]
[1766424845005,0.05216999,126.89,126.86,25.18036981]
[1766424845409,0.05216999,126.89,126.86,32.27726981]
[1766424845410,0.00216999,126.89,126.86,32.27726981]
[1766424845614,0.00216999,126.89,126.87,25.05]
[1766424846604,93.06,126.93,126.88,25.05]
[1766424847512,34.28229993,126.97,126.9,25.05]
[1766424847719,0.05578513,126.95,126.92,0.0498316]
[1766424848917,0.05578513,126.95,126.92,25.0998316]
[1766424857617,0.05578513,126.95,126.92,32.1934316]
[1766424858017,93.06,126.98,126.93,25.05]
[1766424858222,93.06,126.98,126.94,25.05]
[1766424858821,28.53533846,127.0,126.94,25.05]
[1766424859215,0.05585465,126.98,126.96,0.05620782]
[1766424859519,0.05585465,126.98,126.92,25.05]
[1766424859710,24.86585465,126.98,126.92,25.05]
[1766424860419,0.05585465,126.98,126.93,32.1432]
[1766424860614,0.05585465,126.98,126.94,0.05725899]
[1766424861324,24.86585465,126.98,126.94,0.05725899]
[1766424869431,7.14655465,126.98,126.9,118.09]
[1766424869636,24.81,126.97,126.9,118.09]
[1766424869834,28.53533846,126.97,126.9,118.09]
[1766424870130,28.53533846,126.97,126.91,35.7444]
[1766424870528,0.04975396,126.95,126.93,0.04485812]
[1766424872738,32.21533846,126.99,126.93,28.69485812]
[1766424872930,28.49,126.99,126.93,28.69485812]
[1766424873634,35.58,126.99,126.93,0.04485812]
[1766424873838,0.05550203,126.97,126.93,0.04485812]
[1766424876729,36.13660203,126.97,126.93,0.04485812]
[1766424877639,36.0817,126.96,126.93,0.00485812]
[1766424880950,28.99,126.94,126.88,28.81]
[1766424882037,0.0584303,126.92,126.9,0.04975396]
[1766424889760,28.99,126.96,126.9,28.85975396]
[1766424890550,28.99,126.96,126.9,35.95475396]
[1766424890750,0.05250278,126.94,126.9,35.95475396]
[1766424891743,0.00250278,126.94,126.92,35.9037]
[1766424893456,0.00250278,126.94,126.92,28.81]
[1766424894466,28.99,126.99,126.92,28.81]
[1766424895346,0.05692719,126.97,126.94,0.05869032]
[1766424898169,36.13812719,126.97,126.9,121.87]
[1766424899265,36.13812719,126.97,126.92,0.05578388]
[1766424901071,39.86346565,126.97,126.92,0.05578388]
[1766424901367,32.71533846,126.96,126.92,0.05578388]
[1766424903461,28.99,126.96,126.92,0.05578388]
[1766424909768,0.05692719,126.97,126.92,28.65578388]
[1766424911566,0.05692719,126.97,126.93,7.0933]
[1766424911767,0.05692719,126.97,126.93,35.6933]
[1766424913875,32.09533846,127.01,126.95,28.6]
[1766424914777,0.05530633,126.99,126.97,0.05093708]
[1766424914977,0.05530633,126.99,126.97,0.05253932]
[1766424915987,2.43853637,126.99,126.93,35.6932]
[1766424917181,30.75323004,126.97,126.95,0.00190756]
[1766424917482,30.75323004,126.97,126.91,28.6]
[1766424918270,0.05658399,126.95,126.93,0.05447703]
[1766424918673,28.37,126.99,126.93,28.65447703]
[1766424918869,30.75323004,126.99,126.93,0.05447703]
[1766424919769,0.05300847,126.97,126.93,0.05447703]
[1766424921578,28.42300847,126.97,126.93,0.05447703]
[1766424925586,30.80623851,126.97,126.93,0.05447703]
[1766424925784,2.38323004,126.96,126.93,0.05447703]
[1766424926086,30.75323004,126.96,126.9,93.06]
[1766424926986,0.0562372,126.94,126.92,0.05649598]
[1766424928483,28.4262372,126.94,126.9,93.06]
[1766424928982,28.4262372,126.94,126.88,35.6956]
[1766424929383,28.4262372,126.94,126.89,7.0955]
[1766424929889,30.80946724,126.94,126.88,28.6]
[1766424933989,30.80946724,126.94,126.88,35.696]
[1766424934188,28.4262372,126.94,126.88,35.696]
[1766424934488,30.80946724,126.94,126.88,35.696]
[1766424935599,0.0562372,126.94,126.89,28.73]
[1766424935802,2.38323004,126.97,126.89,28.73]
[1766424935985,29.61,126.98,126.9,28.73]
[1766424936886,0.05355184,126.95,126.93,0.05108828]
[1766424937596,0.00355184,126.95,126.93,0.05108828]
[1766424938796,0.00355184,126.95,126.93,7.14428828]
[1766424939495,29.61,126.98,126.93,35.87428828]
[1766424940086,2.38323004,126.99,126.94,35.8227]
[1766424940291,0.05823104,126.98,126.94,35.8227]
[1766424941399,0.05823104,126.98,126.94,28.73]
[1766424942994,29.66823104,126.98,126.93,0.05108828]
[1766424944195,29.66823104,126.98,126.93,28.78108828]
[1766424945091,0.05823104,126.98,126.94,28.73]
[1766424946293,0.05823104,126.98,126.96,7.0915]
[1766424946503,0.05823104,126.98,126.96,0.05860956]
[1766424947997,0.05823104,126.98,126.92,28.73]
[1766424948698,0.05823104,126.98,126.93,35.8229]
[1766424948902,0.05823104,126.98,126.94,0.05126749]
[1766424950792,0.05823104,126.98,126.94,35.87396749]
[1766424951910,0.05823104,126.98,126.94,28.78126749]
[1766424955513,0.05823104,126.98,126.94,35.87396749]
[1766424964418,0.05823104,126.98,126.94,28.78126749]
[1766424965108,0.05823104,126.98,126.94,0.05126749]
[1766424965109,39.14196108,126.98,126.94,0.05126749]
[1766424965316,2.38323004,126.96,126.9,121.75]
[1766424966206,0.05574343,126.94,126.9,121.75]
[1766424966412,0.05574343,126.94,126.91,29.09]
[1766424972530,34.54897347,126.94,126.87,29.09]
[1766424972726,34.54897347,126.94,126.87,122.13]
[1766424973124,34.54897347,126.94,126.88,29.09]
[1766424973736,41.64177347,126.94,126.88,29.09]
[1766424976037,39.25854343,126.94,126.88,29.09]
[1766424976425,39.2035,126.93,126.88,29.09]
[1766424976623,7.0935,126.93,126.88,29.09]
[1766424976829,32.16574343,126.94,126.88,29.09]
[1766424977124,39.25854343,126.94,126.88,29.09]
[1766424980922,32.16574343,126.94,126.88,29.09]
[1766424981225,32.11,126.92,126.85,29.09]
[1766424981430,0.06035767,126.9,126.85,29.09]
[1766424982727,0.06035767,126.9,126.85,36.1872]
[1766424983325,0.06035767,126.9,126.85,29.09]
[1766424986426,3.72736124,126.93,126.85,29.09]
[1766424986630,3.72736124,126.93,126.85,36.1876]
[1766424987434,0.05170395,126.9,126.88,0.05451101]
[1766424989934,0.00170395,126.9,126.88,0.05451101]
[1766424990136,0.00170395,126.9,126.88,32.68451101]
[1766424990346,28.38736124,126.97,126.88,34.26451101]
[1766424990635,7.0906,126.98,126.91,32.63]
[1766424991533,0.05899817,126.96,126.93,0.05814969]
[1766424993134,7.15089817,126.96,126.93,0.05814969]
[1766424993731,138.89466124,127.01,126.93,32.68814969]
[1766424993931,138.89466124,127.01,126.93,32.63]
[1766424994331,7.0901,126.99,126.93,32.63]
[1766424994536,28.61736124,127.01,126.93,32.63]
[1766424994830,0.05607442,126.98,126.96,0.05157761]
[1766425000035,93.06,127.02,126.96,32.09157761]
[1766425000431,32.4862,127.06,126.96,32.09157761]
[1766425000730,25.4,127.06,126.98,32.04]
[1766425001040,0.00109902,127.03,127.01,0.05558362]
[1766425009639,0.00109902,127.03,127.01,32.09558362]
[1766425011942,3.72736124,127.07,127.01,32.09558362]
[1766425012949,0.05298459,127.05,127.01,32.09558362]
[1766425015052,0.05298459,127.05,127.01,0.05558362]
[1766425017046,0.05298459,127.05,127.01,32.09558362]
[1766425018355,110.2048,127.09,127.01,32.09558362]
[1766425018356,30.06736124,127.1,127.01,32.09558362]
[1766425018555,30.06736124,127.1,127.01,32.04]
[1766425018556,26.34,127.1,127.01,32.04]
[1766425018955,26.34,127.1,126.99,110.2838]
[1766425018956,26.34,127.1,127.04,32.04]
[1766425019556,0.05909896,127.08,127.06,0.05735002]
[1766425021454,26.51909896,127.08,127.02,32.04]
[1766425021654,26.46,127.08,127.02,32.04]
[1766425021855,33.545,127.08,127.02,32.04]
[1766425022162,7.085,127.08,127.02,32.04]
[1766425022361,110.1788,127.12,127.04,32.09035365]
[1766425022362,26.5,127.12,127.04,32.09035365]
[1766425022560,26.5,127.12,127.04,32.04]
[1766425023264,26.5,127.12,127.02,92.98]
[1766425023265,0.05565935,127.09,127.07,0.05705897]
[1766425024162,0.05565935,127.09,127.05,32.04]
[1766425024766,26.63,127.08,126.98,32.04]
[1766425024964,26.63,127.08,127.0,32.04]
[1766425025167,0.0530912,127.05,127.03,0.0596007]
[1766425025462,0.0030912,127.05,127.03,30.6096007]
[1766425025668,37.56156124,127.1,127.03,30.6096007]
[1766425026259,33.8744,127.09,127.03,30.6096007]
[1766425026662,0.05937695,127.07,127.03,30.6096007]
[1766425027568,26.87937695,127.07,127.03,0.0596007]
[1766425028162,33.96487695,127.07,127.03,0.0596007]
[1766425028566,33.96487695,127.07,127.01,30.55]
[1766425029255,10.81376124,127.06,127.01,30.55]
[1766425029464,30.61736124,127.06,127.02,0.0546247]
[1766425029766,0.05598804,127.05,126.99,123.53]
[1766425030672,7.14258804,127.05,127.01,0.05363963]
[1766425031657,0.05598804,127.05,127.01,0.05363963]
[1766425034766,7.14288804,127.05,127.01,0.05363963]
[1766425035561,0.05598804,127.05,127.01,0.05363963]
[1766425035970,2.38128814,127.04,127.01,0.05363963]
[1766425042075,29.62128814,127.04,126.97,30.55]
[1766425042275,2.38128814,127.02,126.97,30.55]
[1766425043179,2.38128814,127.0,126.98,0.00319419]
[1766425043384,2.38128814,127.0,126.95,123.53]
[1766425043677,0.0540124,127.01,126.96,30.55]
[1766425044080,0.0540124,127.01,126.97,0.05774155]
[1766425044785,0.0540124,127.01,126.97,30.60774155]
[1766425045880,0.0040124,127.01,126.97,30.60774155]
[1766425046080,34.3866,127.06,126.99,30.55]
[1766425047071,0.05882922,127.04,127.01,0.05678458]
[1766425058491,30.00128814,127.03,126.96,32.27]
[1766425058786,30.00128814,127.01,126.94,32.27]
[1766425059588,0.0589793,126.99,126.96,0.05935495]
[1766425061085,2.44026744,126.99,126.96,0.05935495]
[1766425061393,2.44026744,126.99,126.92,32.27]
[1766425061585,2.38128814,126.99,126.92,32.27]
[1766425062286,0.05325015,126.97,126.94,32.31329999]
[1766425063194,0.00325015,126.97,126.94,32.31329999]
[1766425068287,30.07128814,127.01,126.94,39.40569999]
[1766425068485,27.88,127.05,126.95,32.27]
[1766425068690,110.225,127.07,126.95,32.27]
[1766425068691,30.26128814,127.04,126.95,32.27]
[1766425068898,37.34848814,127.04,126.97,32.27]
[1766425069295,110.2088,127.09,126.97,32.27]
[1766425069494,30.28128814,127.08,127.0,39.3591]
[1766425070489,0.0592401,127.05,127.03,0.05148338]
[1766425072291,0.0592401,127.05,126.99,125.27]
[1766425073386,0.0592401,127.05,127.01,0.05769253]
[1766425075199,110.206,127.09,127.01,32.32769253]
[1766425075200,28.03,127.09,127.01,32.32769253]
[1766425075385,2.38128814,127.08,127.01,32.27]
[1766425075792,30.47128814,127.08,127.01,32.27]
[1766425075991,28.09,127.08,127.01,39.3587]
[1766425076192,0.05322131,127.06,127.03,32.32597973]
[1766425076598,0.00322131,127.06,127.03,32.32597973]
[1766425076800,123.49128814,127.1,127.03,32.32597973]
[1766425077303,130.57528814,127.1,127.03,32.32597973]
[1766425077504,37.57528814,127.1,127.03,32.32597973]
[1766425077698,0.05819167,127.08,127.03,32.32597973]
[1766425078505,0.05819167,127.08,127.03,39.41357973]
[1766425079606,2.38128814,127.11,127.03,39.41357973]
[1766425079807,2.38128814,127.11,127.03,39.3576]
[1766425080505,0.05215706,127.08,127.06,0.04986942]
[1766425081406,100.0621,127.14,127.06,32.31986942]
[1766425081407,2.38128814,127.12,127.06,32.31986942]
[1766425081607,7.0821,127.14,127.06,32.31986942]
[1766425081608,30.74128814,127.15,127.06,32.27]
[1766425082000,2.38128814,127.13,127.06,32.27]
[1766425082406,0.05395459,127.11,127.08,0.05836714]
[1766425083302,30.77128814,127.1,127.04,32.27]
[1766425083508,30.77128814,127.1,127.03,32.27]
[1766425084110,30.79128814,127.08,127.02,92.98]
[1766425084410,0.06056687,127.06,127.04,0.05991908]
[1766425085306,0.00056687,127.06,127.04,0.05991908]
[1766425085513,2.38128814,127.11,127.04,32.32991908]
[1766425085811,2.38128814,127.11,127.04,32.27]
[1766425086003,30.94128814,127.11,127.04,32.27]
[1766425086405,0.05738596,127.09,127.06,0.05591239]
[1766425094532,28.66,127.12,127.06,31.78591239]
[1766425094934,28.75,127.13,127.06,31.78591239]
[1766425095233,28.75,127.13,127.06,31.73]
[1766425095433,0.05425652,127.11,127.08,0.0521152]
[1766425100031,28.87425652,127.11,127.08,0.0021152]
[1766425100232,28.87425652,127.11,127.04,31.73]
[1766425100838,35.8639,127.1,127.04,31.73]
[1766425101236,0.05861917,127.08,127.06,0.05133299]
[1766425103230,28.82861917,127.08,127.02,31.73]
[1766425103435,28.82861917,127.08,127.0,31.73]
[1766425103736,28.77,127.08,127.0,31.73]
[1766425103937,28.77,127.08,127.0,38.8193]
[1766425104137,7.0849,127.09,127.0,31.73]
[1766425104343,0.05410096,127.06,127.03,0.05693139]
[1766425105040,28.83410096,127.06,127.03,0.05693139]
[1766425105241,28.83410096,127.06,126.99,31.73]
[1766425105944,28.83410096,127.06,126.99,38.8199]
[1766425106243,28.83410096,127.06,127.01,0.05009883]
[1766425106439,35.92060096,127.06,127.01,0.05009883]
[1766425109047,39.57698808,127.05,127.01,0.05009883]
[1766425109934,0.05410096,127.06,127.01,32.36009883]
[1766425110248,28.83410096,127.06,127.01,0.05009883]
[1766425111648,35.92020096,127.06,127.01,0.05009883]
[1766425112243,28.81,127.05,127.01,0.05009883]
[1766425112852,28.81,127.05,126.94,172.328]
[1766425112853,32.53028808,127.04,126.97,32.31]
[1766425113647,28.77,127.03,126.95,32.31]
[1766425113852,0.05283693,127.0,126.98,0.0505085]
[1766425114046,0.05283693,127.0,126.98,0.0005085]
[1766425115654,28.79283693,127.0,126.92,32.21]
[1766425115948,28.74,126.97,126.89,32.21]
[1766425116754,0.05607484,126.94,126.92,0.05866089]
[1766425126248,28.74,126.97,126.92,32.26866089]
[1766425127151,0.05080378,126.96,126.92,32.26866089]
[1766425132452,32.75109186,126.96,126.92,0.05866089]
[1766425134159,39.84279186,126.96,126.92,0.05866089]
[1766425134356,29.03080378,126.96,126.92,0.05866089]
[1766425136958,0.05080378,126.96,126.92,32.26866089]
[1766425137762,0.00080378,126.96,126.92,32.26866089]
[1766425141169,0.00080378,126.96,126.92,39.36236089]
[1766425143954,0.00080378,126.96,126.92,0.05866089]
[1766425151774,0.00080378,126.96,126.92,41.81236089]
[1766425151968,0.00080378,126.96,126.92,34.71866089]
[1766425153079,3.72028808,126.95,126.9,34.66]
[1766425153672,29.25,126.96,126.9,34.66]
[1766425154181,0.05074912,126.94,126.92,0.06000868]
[1766425155370,0.00074912,126.94,126.92,0.06000868]
[1766425156477,0.00074912,126.94,126.92,34.72000868]
[1766425158475,0.00074912,126.94,126.93,41.7533]
[1766425158783,0.00074912,126.94,126.93,34.66]
[1766425159771,29.34,127.0,126.93,34.66]
[1766425159978,2.38339151,126.99,126.93,34.66]
[1766425160482,2.38339151,126.99,126.94,41.7527]
[1766425160885,0.05709328,126.98,126.95,0.04974623]
[1766425165690,2.38339151,126.97,126.92,34.66]
[1766425166589,2.38339151,126.97,126.92,41.7539]
[1766425166791,2.38339151,126.97,126.93,34.71824812]
[1766425167791,0.05709328,126.98,126.93,41.81154812]
[1766425167981,0.05709328,126.98,126.93,34.71824812]
[1766425170688,0.05709328,126.98,126.93,41.81124812]
[1766425178191,0.05709328,126.98,126.95,32.9]
[1766425180296,2.38339151,127.03,126.95,32.9]
[1766425180502,2.38339151,127.03,126.97,32.9]
[1766425181302,34.39339151,127.05,126.99,32.95440761]
[1766425181603,34.41339151,127.01,126.95,32.9]
[1766425182701,0.05121824,126.99,126.97,0.05218461]
[1766425185005,0.00121824,126.99,126.97,0.05218461]
[1766425186504,0.00121824,126.99,126.97,32.95218461]
[1766425188409,2.38339151,127.03,126.97,32.95218461]
[1766425189508,0.05709966,127.01,126.97,32.95218461]
[1766425189708,0.05709966,127.01,126.97,40.04318461]
[1766425197911,2.38339151,127.03,126.99,32.9]
[1766425198111,7.0864,127.06,126.99,32.9]
[1766425198112,2.38339151,127.06,126.99,32.9]
[1766425198515,2.38339151,127.06,127.01,32.9]
[1766425198910,0.04974147,127.05,127.02,0.04987652]
[1766425199915,2.38339151,127.04,126.99,39.9899]
[1766425200116,2.38339151,127.04,126.99,32.9]
[1766425200905,2.38339151,127.04,127.0,0.05155952]
[1766425202418,9.47059151,127.04,127.0,0.05155952]
[1766425202624,2.38339151,127.02,127.0,0.05155952]
[1766425202812,2.43719308,127.02,126.97,32.9]
[1766425203414,0.00380157,127.02,126.97,32.9]
[1766425203823,0.00380157,127.02,127.01,32.9]
[1766425204117,2.38339151,127.08,127.01,32.9]
[1766425204424,2.38339151,127.08,127.01,39.9888]
[1766425204614,34.59339151,127.08,127.01,39.9888]
[1766425204919,0.05725421,127.06,127.03,0.05917707]
[1766425205123,0.05725421,127.06,127.0,93.0]
[1766425205124,34.65064572,127.06,127.0,93.0]
[1766425205323,34.65064572,127.06,127.0,125.9]
[1766425206021,2.44064572,127.06,127.01,33.0]
[1766425206218,2.44064572,127.06,127.02,0.05174689]
[1766425207324,0.05725421,127.06,127.02,0.05174689]
[1766425208424,0.05725421,127.06,127.02,33.05174689]
[1766425211628,0.05725421,127.06,127.02,0.05174689]
[1766425217928,2.44064572,127.06,127.02,0.05174689]
[1766425218323,34.71064572,127.06,127.02,0.05174689]
[1766425218526,34.60339151,127.04,126.98,33.0]
[1766425219635,0.05283436,127.02,127.0,0.05246989]
[1766425221523,0.05283436,127.02,126.96,33.0]
[1766425221727,32.21283436,127.02,126.96,33.0]
[1766425221923,35.88162688,127.01,126.96,33.0]
[1766425222634,42.97052688,127.01,126.97,0.0499937]
[1766425222835,0.05283436,127.02,126.97,33.0499937]
[1766425223336,32.21283436,127.02,126.97,0.0499937]
[1766425223837,39.30133436,127.02,126.97,0.0499937]
[1766425224633,32.21283436,127.02,126.97,33.0499937]
[1766425225937,32.21283436,127.02,126.97,0.0499937]
[1766425229830,35.83162688,127.01,126.94,42.0227]
[1766425230331,32.11,127.01,126.95,42.0221]
[1766425230933,0.05819943,126.99,126.97,0.05562116]
[1766425248171,0.05819943,126.99,126.93,203.3586]
[1766425248172,32.11819943,126.99,126.93,32.69]
[1766425249266,32.11819943,126.99,126.95,0.02574006]
[1766425249764,32.11819943,126.99,126.91,203.3719]
[1766425249765,32.11819943,126.99,126.91,125.71]
[1766425249961,32.06,126.99,126.92,32.69]
[1766425250654,0.05395541,126.97,126.93,7.0933]
[1766425258368,0.05395541,126.97,126.93,39.7833]
[1766425265877,32.05,127.02,126.94,33.45]
[1766425266077,32.05,127.02,126.94,37.12162688]
[1766425266276,32.05,127.04,126.96,33.4]
[1766425266475,32.05,127.04,126.98,33.4]
[1766425267179,0.06042028,127.02,127.0,0.05395541]
[1766425267477,0.00042028,127.02,127.0,0.05395541]
[1766425268575,125.15,127.05,127.0,33.45395541]
[1766425268777,93.04,127.05,127.0,33.45395541]
[1766425268969,31.95,127.07,127.0,33.45395541]
[1766425269871,0.00112413,127.05,127.02,33.4]
[1766425270877,0.00112413,127.05,127.02,33.45124131]
[1766425273188,131.3737,127.11,127.04,33.4]
[1766425273385,31.27,127.1,127.04,33.4]
[1766425274185,0.05247403,127.08,127.06,0.05172718]
[1766425275289,0.05247403,127.08,127.02,33.4]
[1766425275689,38.06767403,127.08,127.02,33.4]
[1766425276283,38.06767403,127.08,127.04,0.04988346]
[1766425281484,0.05247403,127.08,127.04,0.04988346]
[1766425281694,0.00247403,127.08,127.04,33.44988346]
[1766425281995,94.52,127.15,127.04,35.82793601]
[1766425281996,125.52805255,127.14,127.04,35.82793601]
[1766425282193,30.04,127.13,127.04,35.77805255]
[1766425282894,0.0498678,127.1,127.07,0.05865597]
[1766425284996,0.0498678,127.1,127.07,33.45865597]
[1766425285999,0.0498678,127.1,127.07,0.05865597]
[1766425288805,31.72792035,127.1,127.03,33.4]